[Event "GrandPrix_30.05"]
[Site "Chess.com"]
[Date "2020.05.30"]
[Round "8"]
[White "ehrenfeld"]
[Black "Haapana"]
[Result "1-0"]
[WhiteElo "2100"]
[BlackElo "2325"]
[TimeControl "600+2"]
[EndTime "12:00:01 PDT"]
[Termination "ehrenfeld won on time"]

1. e4 {[%clk 0:10:01.9]} 1... e6 {[%clk 0:09:44.7]} 2. d3 {[%clk 0:10:00.8]}
2... d5 {[%clk 0:09:44.5]} 3. Qe2 {[%clk 0:10:01]} 3... Be7 {[%clk 0:09:41.3]}
4. Nf3 {[%clk 0:10:01.6]} 4... Nf6 {[%clk 0:09:28.6]} 5. g3 {[%clk 0:10:01.8]}
5... c5 {[%clk 0:08:49.7]} 6. Bg2 {[%clk 0:10:00.7]} 6... Nc6 {[%clk 0:08:41.6]}
7. e5 {[%clk 0:10:01.5]} 7... Nd7 {[%clk 0:08:40.9]} 8. c4 {[%clk 0:10:02.6]}
8... dxc4 {[%clk 0:07:07.4]} 9. dxc4 {[%clk 0:10:02.8]} 9... Nd4 {[%clk
0:07:09.1]} 10. Nxd4 {[%clk 0:10:02.6]} 10... cxd4 {[%clk 0:07:11]} 11. O-O
{[%clk 0:10:01.7]} 11... Qc7 {[%clk 0:07:00.2]} 12. Re1 {[%clk 0:09:54.6]} 12...
h5 {[%clk 0:05:50.3]} 13. Nd2 {[%clk 0:09:41.1]} 13... h4 {[%clk 0:05:18.4]} 14.
Nf3 {[%clk 0:09:35.2]} 14... hxg3 {[%clk 0:05:18.2]} 15. hxg3 {[%clk 0:09:30.4]}
15... Bc5 {[%clk 0:03:55.3]} 16. Bf4 {[%clk 0:09:24.3]} 16... Nb8 {[%clk
0:03:49.8]} 17. a3 {[%clk 0:08:55.3]} 17... a5 {[%clk 0:03:49.1]} 18. b4 {[%clk
0:08:53.8]} 18... axb4 {[%clk 0:03:44.6]} 19. axb4 {[%clk 0:08:54.3]} 19... Rxa1
{[%clk 0:03:46.5]} 20. Rxa1 {[%clk 0:08:55.1]} 20... Bxb4 {[%clk 0:03:48]} 21.
Nxd4 {[%clk 0:08:54.4]} 21... Bd7 {[%clk 0:03:48.3]} 22. Ra7 {[%clk 0:07:20.8]}
22... O-O {[%clk 0:02:13]} 23. Rxb7 {[%clk 0:07:20]} 23... Qa5 {[%clk
0:02:14.2]} 24. Qb2 {[%clk 0:04:58.3]} 24... Bc3 {[%clk 0:02:06.3]} 25. Nb3
{[%clk 0:04:47.5]} 25... Bxb2 {[%clk 0:01:14.2]} 26. Nxa5 {[%clk 0:04:48]} 26...
Bc3 {[%clk 0:01:01.5]} 27. Nb3 {[%clk 0:04:25.6]} 27... Rc8 {[%clk 0:01:01.3]}
28. Nc5 {[%clk 0:03:23.9]} 28... Be8 {[%clk 0:00:55.3]} 29. Ne4 {[%clk
0:03:19.8]} 29... Bc6 {[%clk 0:00:45]} 30. Nxc3 {[%clk 0:02:15.2]} 30... Bxb7
{[%clk 0:00:43.3]} 31. Bxb7 {[%clk 0:02:15.9]} 31... Rxc4 {[%clk 0:00:44.8]} 32.
Ne4 {[%clk 0:02:13.1]} 32... Nc6 {[%clk 0:00:18.3]} 33. Nd6 {[%clk 0:02:07.5]}
33... Rc5 {[%clk 0:00:19.8]} 34. Bxc6 {[%clk 0:01:50.7]} 34... Rxc6 {[%clk
0:00:20.5]} 35. Kg2 {[%clk 0:01:44.9]} 35... Rc3 {[%clk 0:00:21.1]} 36. Ne4
{[%clk 0:01:44.7]} 36... Rb3 {[%clk 0:00:20.5]} 37. Be3 {[%clk 0:01:42.4]} 37...
Rb4 {[%clk 0:00:20]} 38. Nc5 {[%clk 0:01:38.8]} 38... Rc4 {[%clk 0:00:20.9]} 39.
f4 {[%clk 0:01:36.6]} 39... Kf8 {[%clk 0:00:18.1]} 40. Kf3 {[%clk 0:01:37]}
40... Ke7 {[%clk 0:00:18.4]} 41. Ne4 {[%clk 0:01:35.2]} 41... f6 {[%clk
0:00:16]} 42. Bc5+ {[%clk 0:01:00.4]} 42... Kd8 {[%clk 0:00:15.9]} 43. Bf8
{[%clk 0:00:51.2]} 43... fxe5 {[%clk 0:00:13.7]} 44. fxe5 {[%clk 0:00:38.6]}
44... g6 {[%clk 0:00:12]} 45. Bg7 {[%clk 0:00:19.6]} 45... Kd7 {[%clk
0:00:08.8]} 46. Bf6 {[%clk 0:00:19.2]} 46... Kc6 {[%clk 0:00:09.4]} 47. Nd6
{[%clk 0:00:16.9]} 47... Rb4 {[%clk 0:00:08.3]} 48. Nf7 {[%clk 0:00:16.6]} 1-0

[Event "GrandPrix_30.05"]
[Site "Chess.com"]
[Date "2020.05.30"]
[Round "8"]
[White "Kobalia"]
[Black "Anton_Demchenko"]
[Result "1/2-1/2"]
[WhiteElo "2502"]
[BlackElo "2633"]
[TimeControl "600+2"]
[EndTime "12:00:02 PDT"]
[Termination "Game drawn by repetition"]

1. e4 {[%clk 0:10:01.9]} 1... e5 {[%clk 0:10:00.6]} 2. Nf3 {[%clk 0:10:00.9]}
2... Nc6 {[%clk 0:10:01.4]} 3. Bb5 {[%clk 0:10:01.3]} 3... a6 {[%clk 0:10:02.9]}
4. Ba4 {[%clk 0:10:02]} 4... Nge7 {[%clk 0:10:04]} 5. O-O {[%clk 0:09:54.9]}
5... Ng6 {[%clk 0:10:04.2]} 6. d4 {[%clk 0:09:12.1]} 6... exd4 {[%clk
0:10:03.2]} 7. Nxd4 {[%clk 0:09:12.8]} 7... Nxd4 {[%clk 0:09:44.8]} 8. Qxd4
{[%clk 0:09:11.8]} 8... b5 {[%clk 0:09:46]} 9. Bb3 {[%clk 0:09:06.1]} 9... Bb7
{[%clk 0:09:46.9]} 10. Qc3 {[%clk 0:08:01.4]} 10... Bd6 {[%clk 0:07:19.1]} 11.
Qxg7 {[%clk 0:07:06.4]} 11... Qe7 {[%clk 0:07:16.7]} 12. Nc3 {[%clk 0:06:10.6]}
12... O-O-O {[%clk 0:06:55.9]} 13. Qh6 {[%clk 0:04:37.3]} 13... b4 {[%clk
0:05:54.5]} 14. Nd5 {[%clk 0:04:15.2]} 14... Qxe4 {[%clk 0:05:55.3]} 15. f3
{[%clk 0:03:26]} 15... Qe5 {[%clk 0:05:49.2]} 16. Rd1 {[%clk 0:03:18.2]} 16...
Rhg8 {[%clk 0:02:02.7]} 17. Be3 {[%clk 0:03:04.8]} 17... Ne7 {[%clk 0:01:29.1]}
18. Nxe7+ {[%clk 0:01:29]} 18... Qxe7 {[%clk 0:01:25.2]} 19. Rxd6 {[%clk
0:00:40.3]} 19... cxd6 {[%clk 0:01:20.4]} 20. Qf4 {[%clk 0:00:38]} 20... Qe5
{[%clk 0:00:38.2]} 21. Kf2 {[%clk 0:00:23.9]} 21... Qxb2 {[%clk 0:00:17.3]} 22.
Rd1 {[%clk 0:00:23.7]} 22... Qe5 {[%clk 0:00:18.1]} 23. Rxd6 {[%clk 0:00:21.5]}
23... Qxf4 {[%clk 0:00:17.1]} 24. Bxf4 {[%clk 0:00:22.3]} 24... Rg6 {[%clk
0:00:17.8]} 25. Rd4 {[%clk 0:00:21.1]} 25... a5 {[%clk 0:00:14.5]} 26. Bxf7
{[%clk 0:00:18.4]} 26... Rc6 {[%clk 0:00:15.4]} 27. Bb3 {[%clk 0:00:18.2]} 27...
Re8 {[%clk 0:00:10.1]} 28. h4 {[%clk 0:00:16.4]} 28... Ba6 {[%clk 0:00:10.9]}
29. g4 {[%clk 0:00:13.5]} 29... Re2+ {[%clk 0:00:11.3]} 30. Kg3 {[%clk
0:00:14.6]} 30... Bb5 {[%clk 0:00:09.1]} 31. h5 {[%clk 0:00:15]} 31... a4 {[%clk
0:00:09.9]} 32. Bd5 {[%clk 0:00:15.6]} 32... Rcxc2 {[%clk 0:00:07.7]} 33. Rxb4
{[%clk 0:00:16.7]} 33... Bc6 {[%clk 0:00:07.7]} 34. Bxc6 {[%clk 0:00:16.5]}
34... dxc6 {[%clk 0:00:08.5]} 35. Rxa4 {[%clk 0:00:16.6]} 35... Rxa2 {[%clk
0:00:09.4]} 36. Rc4 {[%clk 0:00:17.6]} 36... Kd7 {[%clk 0:00:10.1]} 37. Rd4+
{[%clk 0:00:18.5]} 37... Ke7 {[%clk 0:00:09.7]} 38. Rd6 {[%clk 0:00:19.5]} 38...
Re6 {[%clk 0:00:08.8]} 39. Rd3 {[%clk 0:00:17.1]} 39... c5 {[%clk 0:00:10.2]}
40. Bg5+ {[%clk 0:00:18.3]} 40... Ke8 {[%clk 0:00:06.6]} 41. Rd8+ {[%clk
0:00:18.8]} 41... Kf7 {[%clk 0:00:08.3]} 42. Rd7+ {[%clk 0:00:20]} 42... Kg8
{[%clk 0:00:10]} 43. Rd8+ {[%clk 0:00:16.2]} 43... Kf7 {[%clk 0:00:11]} 44. Rd7+
{[%clk 0:00:17.2]} 44... Kg8 {[%clk 0:00:12.5]} 45. Rc7 {[%clk 0:00:15.4]} 45...
h6 {[%clk 0:00:11]} 46. Bf4 {[%clk 0:00:14.1]} 46... Rc2 {[%clk 0:00:11.5]} 47.
Rc8+ {[%clk 0:00:11.7]} 47... Kf7 {[%clk 0:00:12.5]} 48. Rc7+ {[%clk 0:00:12.5]}
48... Kg8 {[%clk 0:00:13.5]} 49. Rc8+ {[%clk 0:00:13.7]} 49... Kg7 {[%clk
0:00:13.4]} 50. Rc7+ {[%clk 0:00:14.8]} 50... Kg8 {[%clk 0:00:13.4]} 1/2-1/2

[Event "GrandPrix_30.05"]
[Site "Chess.com"]
[Date "2020.05.30"]
[Round "8"]
[White "fm_magua"]
[Black "Poghosyan_Suren"]
[Result "1-0"]
[WhiteElo "1922"]
[BlackElo "2106"]
[TimeControl "600+2"]
[EndTime "12:00:03 PDT"]
[Termination "fm_magua won by resignation"]

1. e4 {[%clk 0:10:01.9]} 1... e6 {[%clk 0:09:57.9]} 2. d3 {[%clk 0:10:02.2]}
2... d5 {[%clk 0:09:57.9]} 3. Nd2 {[%clk 0:10:03.4]} 3... Nf6 {[%clk 0:09:54.7]}
4. g3 {[%clk 0:10:04.7]} 4... dxe4 {[%clk 0:09:53.9]} 5. dxe4 {[%clk 0:10:04.6]}
5... Bc5 {[%clk 0:09:53.9]} 6. Bg2 {[%clk 0:10:01.4]} 6... e5 {[%clk 0:09:52.7]}
7. h3 {[%clk 0:10:02.2]} 7... Nc6 {[%clk 0:09:49.5]} 8. Ngf3 {[%clk 0:10:01.1]}
8... a5 {[%clk 0:09:49.5]} 9. O-O {[%clk 0:10:01.7]} 9... O-O {[%clk 0:09:49.6]}
10. Nh4 {[%clk 0:09:41.5]} 10... Re8 {[%clk 0:09:00.4]} 11. Nb3 {[%clk 0:09:41]}
11... Bd6 {[%clk 0:08:34.6]} 12. Be3 {[%clk 0:09:39.1]} 12... Qe7 {[%clk
0:08:34.7]} 13. c3 {[%clk 0:09:32.5]} 13... Be6 {[%clk 0:08:31.9]} 14. Qf3
{[%clk 0:09:28.1]} 14... g6 {[%clk 0:08:01.5]} 15. Bg5 {[%clk 0:09:14.2]} 15...
Kg7 {[%clk 0:08:01.7]} 16. Qe3 {[%clk 0:09:12.1]} 16... a4 {[%clk 0:07:50.5]}
17. Nd2 {[%clk 0:09:10]} 17... Bc5 {[%clk 0:07:50.7]} 18. Bxf6+ {[%clk
0:08:48.7]} 18... Kxf6 {[%clk 0:07:47]} 19. Qh6 {[%clk 0:08:45.5]} 19... Qf8
{[%clk 0:07:30.6]} 20. Qxh7 {[%clk 0:08:36]} 20... Qd6 {[%clk 0:07:29.2]} 21.
Nf5 {[%clk 0:08:19.6]} 21... Bxf5 {[%clk 0:07:07.1]} 22. Nc4 {[%clk 0:08:17.4]}
22... Qd3 {[%clk 0:06:49.2]} 23. Qh4+ {[%clk 0:07:54.1]} 23... g5 {[%clk
0:06:49.2]} 24. Qh6+ {[%clk 0:07:54.6]} 24... Bg6 {[%clk 0:06:50.3]} 25. Ne3
{[%clk 0:07:54.5]} 25... Qd8 {[%clk 0:02:45]} 26. Rad1 {[%clk 0:07:03.8]} 26...
Bd6 {[%clk 0:02:22.8]} 27. Nd5+ {[%clk 0:06:49]} 27... Ke6 {[%clk 0:02:22.8]}
28. Bf3 {[%clk 0:06:50.2]} 28... Kd7 {[%clk 0:02:09.9]} 29. Bg4+ {[%clk
0:06:47.8]} 29... Re6 {[%clk 0:02:11]} 30. Bxe6+ {[%clk 0:06:30.3]} 30... fxe6
{[%clk 0:02:03.1]} 31. Qxg6 {[%clk 0:06:29.5]} 31... exd5 {[%clk 0:02:03.9]} 32.
Qf5+ {[%clk 0:06:30.5]} 32... Ke8 {[%clk 0:02:00.2]} 33. exd5 {[%clk 0:06:30.6]}
33... Ne7 {[%clk 0:01:57.6]} 34. Qxg5 {[%clk 0:06:30]} 34... Qd7 {[%clk
0:01:41.8]} 35. Qh5+ {[%clk 0:06:20]} 35... Kf8 {[%clk 0:01:41.6]} 36. Rd3
{[%clk 0:05:41.2]} 36... e4 {[%clk 0:01:30.7]} 37. Rd4 {[%clk 0:05:28.3]} 37...
Qf5 {[%clk 0:01:29.1]} 38. Qxf5+ {[%clk 0:05:24.5]} 38... Nxf5 {[%clk 0:01:31]}
39. Rxe4 {[%clk 0:05:25.8]} 39... a3 {[%clk 0:01:30]} 40. b3 {[%clk 0:05:25.8]}
40... b5 {[%clk 0:01:28.4]} 41. c4 {[%clk 0:05:26.6]} 41... bxc4 {[%clk
0:01:28.3]} 42. bxc4 {[%clk 0:05:27.6]} 42... Rb8 {[%clk 0:01:28.9]} 43. c5
{[%clk 0:05:25.9]} 43... Bxc5 {[%clk 0:01:19.9]} 44. Rf4 {[%clk 0:05:26.1]}
44... Rb2 {[%clk 0:01:20.6]} 45. Rxf5+ {[%clk 0:05:27.3]} 45... Kg7 {[%clk
0:01:21.7]} 46. Ra1 {[%clk 0:05:23.9]} 46... Rd2 {[%clk 0:01:16.5]} 47. Kg2
{[%clk 0:04:58.4]} 47... Bd4 {[%clk 0:01:08.9]} 48. Rc1 {[%clk 0:04:58.6]} 48...
Rxa2 {[%clk 0:01:08]} 49. Rxc7+ {[%clk 0:04:59]} 49... Kg6 {[%clk 0:01:09.9]}
50. g4 {[%clk 0:04:58.1]} 50... Rd2 {[%clk 0:00:59.3]} 51. Rc6+ {[%clk
0:04:14.6]} 51... Kg7 {[%clk 0:00:57.3]} 52. Ra6 {[%clk 0:04:07.5]} 52... a2
{[%clk 0:00:56.6]} 53. h4 {[%clk 0:03:58.1]} 53... a1=Q {[%clk 0:00:49.4]} 54.
Rxa1 {[%clk 0:03:58.8]} 54... Bxa1 {[%clk 0:00:51.3]} 55. Kg3 {[%clk 0:03:50.5]}
55... Rd3+ {[%clk 0:00:40.1]} 56. f3 {[%clk 0:03:49.3]} 56... Bc3 {[%clk
0:00:40.2]} 57. h5 {[%clk 0:03:49.4]} 57... Be1+ {[%clk 0:00:39.8]} 58. Kf4
{[%clk 0:03:49.5]} 58... Bd2+ {[%clk 0:00:40.4]} 59. Ke4 {[%clk 0:03:50.8]}
59... Re3+ {[%clk 0:00:36.6]} 60. Kd4 {[%clk 0:03:52]} 60... Re1 {[%clk
0:00:36]} 61. d6 {[%clk 0:03:48.4]} 61... Rd1 {[%clk 0:00:32.9]} 62. Kc5 {[%clk
0:03:48.8]} 62... Rc1+ {[%clk 0:00:26.9]} 63. Kb5 {[%clk 0:03:42.9]} 63... Rb1+
{[%clk 0:00:24.8]} 64. Kc6 {[%clk 0:03:43.6]} 64... Be3 {[%clk 0:00:13.8]} 65.
Rd5 {[%clk 0:03:28.2]} 65... Rc1+ {[%clk 0:00:12.3]} 66. Kb7 {[%clk 0:03:26.1]}
66... Rb1+ {[%clk 0:00:10.4]} 67. Kc8 {[%clk 0:03:25.5]} 67... Rc1+ {[%clk
0:00:10.7]} 68. Kd8 {[%clk 0:03:23.1]} 68... Kf6 {[%clk 0:00:11.1]} 69. Kd7
{[%clk 0:03:22.1]} 69... Ra1 {[%clk 0:00:08.9]} 70. Rf5+ {[%clk 0:03:22.4]}
70... Kg7 {[%clk 0:00:10.3]} 71. Ke7 {[%clk 0:03:21.5]} 71... Re1 {[%clk
0:00:07.9]} 72. Kd8 {[%clk 0:03:11]} 72... Bb6+ {[%clk 0:00:05.1]} 73. Kc8
{[%clk 0:03:10.2]} 73... Rd1 {[%clk 0:00:04.8]} 74. d7 {[%clk 0:03:05]} 74...
Rc1+ {[%clk 0:00:05.7]} 75. Kb7 {[%clk 0:03:05.9]} 75... Bd8 {[%clk 0:00:06.8]}
76. Rd5 {[%clk 0:03:05.4]} 76... Kf6 {[%clk 0:00:07.2]} 77. h6 {[%clk
0:02:59.6]} 77... Ke6 {[%clk 0:00:07.8]} 78. h7 {[%clk 0:02:52.6]} 78... Rb1+
{[%clk 0:00:05.5]} 79. Kc8 {[%clk 0:02:47.7]} 79... Bf6 {[%clk 0:00:04]} 80.
d8=Q {[%clk 0:02:47.1]} 80... Bxd8 {[%clk 0:00:03.9]} 81. Rxd8 {[%clk
0:02:47.5]} 81... Rc1+ {[%clk 0:00:02.5]} 82. Kb7 {[%clk 0:02:48.4]} 82... Rb1+
{[%clk 0:00:04.4]} 83. Kc6 {[%clk 0:02:48.8]} 83... Rc1+ {[%clk 0:00:06.3]} 84.
Kb5 {[%clk 0:02:49.5]} 1-0

[Event "GrandPrix_30.05"]
[Site "Chess.com"]
[Date "2020.05.30"]
[Round "8"]
[White "am00ss00"]
[Black "Vnebo"]
[Result "0-1"]
[WhiteElo "2043"]
[BlackElo "2121"]
[TimeControl "600+2"]
[EndTime "12:00:13 PDT"]
[Termination "Vnebo won on time"]

1. e4 {[%clk 0:09:48.7]} 1... c5 {[%clk 0:09:59.4]} 2. Nc3 {[%clk 0:09:43.4]}
2... Nc6 {[%clk 0:09:59.6]} 3. g3 {[%clk 0:09:44]} 3... g6 {[%clk 0:09:59.9]} 4.
Bg2 {[%clk 0:09:44.8]} 4... Bg7 {[%clk 0:10:01.5]} 5. d3 {[%clk 0:09:45.5]} 5...
d6 {[%clk 0:10:02.5]} 6. f4 {[%clk 0:09:44]} 6... e6 {[%clk 0:10:00.3]} 7. Be3
{[%clk 0:09:44.1]} 7... Nge7 {[%clk 0:09:59.3]} 8. Qd2 {[%clk 0:09:44.7]} 8...
b6 {[%clk 0:09:08.4]} 9. Nf3 {[%clk 0:09:42.9]} 9... Bb7 {[%clk 0:09:02.2]} 10.
O-O {[%clk 0:09:43.1]} 10... d5 {[%clk 0:08:26.6]} 11. exd5 {[%clk 0:09:22.7]}
11... Nxd5 {[%clk 0:08:26.9]} 12. Nxd5 {[%clk 0:09:21.4]} 12... Qxd5 {[%clk
0:08:25.3]} 13. Ne5 {[%clk 0:08:50.3]} 13... Qd6 {[%clk 0:08:24.7]} 14. Nc4
{[%clk 0:08:20.7]} 14... Qd7 {[%clk 0:08:04.1]} 15. a4 {[%clk 0:07:34.9]} 15...
O-O {[%clk 0:07:46]} 16. Rae1 {[%clk 0:06:52.8]} 16... Nd4 {[%clk 0:07:31.7]}
17. Ne5 {[%clk 0:06:27.9]} 17... Qc7 {[%clk 0:06:33.9]} 18. g4 {[%clk
0:05:52.1]} 18... Rad8 {[%clk 0:06:01.3]} 19. Qf2 {[%clk 0:05:31.7]} 19... Qc8
{[%clk 0:04:36.7]} 20. c3 {[%clk 0:05:15.3]} 20... Nc6 {[%clk 0:04:24.2]} 21. d4
{[%clk 0:04:01.9]} 21... cxd4 {[%clk 0:04:10.7]} 22. cxd4 {[%clk 0:04:03.8]}
22... Nb4 {[%clk 0:03:31.7]} 23. Rc1 {[%clk 0:03:40.6]} 23... Qa8 {[%clk
0:03:27.6]} 24. Bxb7 {[%clk 0:02:24.9]} 24... Qxb7 {[%clk 0:03:29.5]} 25. f5
{[%clk 0:02:19.4]} 25... Bxe5 {[%clk 0:02:25.7]} 26. dxe5 {[%clk 0:02:19.2]}
26... Nd3 {[%clk 0:02:26.6]} 27. Qh4 {[%clk 0:02:14.1]} 27... Nxc1 {[%clk
0:02:25.2]} 28. Qf6 {[%clk 0:00:36]} 28... Ne2+ {[%clk 0:02:16.4]} 29. Kf2
{[%clk 0:00:34.5]} 29... Nd4 {[%clk 0:02:15.9]} 30. Kg3 {[%clk 0:00:23.2]} 30...
exf5 {[%clk 0:01:50.2]} 31. Bh6 {[%clk 0:00:18.4]} 31... f4+ {[%clk 0:01:45.5]}
32. Rxf4 {[%clk 0:00:15.8]} 32... Ne6 {[%clk 0:01:44.5]} 33. Bxf8 {[%clk
0:00:14]} 33... Rxf8 {[%clk 0:01:37.9]} 34. Rf3 {[%clk 0:00:14.9]} 34... Qe4
{[%clk 0:01:19.2]} 35. h4 {[%clk 0:00:13.7]} 35... Nd4 {[%clk 0:00:56]} 36. Rf2
{[%clk 0:00:07.5]} 36... Ne2+ {[%clk 0:00:40.8]} 37. Kh3 {[%clk 0:00:07.2]}
37... Qh1+ {[%clk 0:00:34.7]} 38. Rh2 {[%clk 0:00:05.4]} 38... Qe1 {[%clk
0:00:34.7]} 39. Rf2 {[%clk 0:00:05.4]} 39... Qh1+ {[%clk 0:00:29.2]} 40. Rh2
{[%clk 0:00:05.8]} 40... Qe4 {[%clk 0:00:30.3]} 41. h5 {[%clk 0:00:06]} 41...
Qe3+ {[%clk 0:00:28.4]} 42. Kh4 {[%clk 0:00:06.2]} 42... Qg3+ {[%clk 0:00:28.1]}
43. Kg5 {[%clk 0:00:06.7]} 43... Qxh2 {[%clk 0:00:27]} 44. h6 {[%clk 0:00:07.5]}
44... Qf4+ {[%clk 0:00:17.7]} 45. Qxf4 {[%clk 0:00:08.6]} 45... Nxf4 {[%clk
0:00:19.5]} 46. Kf6 {[%clk 0:00:08.3]} 46... Ne6 {[%clk 0:00:18.9]} 47. g5
{[%clk 0:00:09.3]} 47... Rc8 {[%clk 0:00:17.7]} 48. b4 {[%clk 0:00:10.1]} 48...
Rc4 {[%clk 0:00:18.3]} 49. b5 {[%clk 0:00:10.5]} 49... Rxa4 {[%clk 0:00:18.9]}
50. Ke7 {[%clk 0:00:12]} 50... Ra5 {[%clk 0:00:19.8]} 0-1

[Event "GrandPrix_30.05"]
[Site "Chess.com"]
[Date "2020.05.30"]
[Round "8"]
[White "Igrok3069"]
[Black "ArnaudovP"]
[Result "0-1"]
[WhiteElo "2487"]
[BlackElo "2363"]
[TimeControl "600+2"]
[EndTime "12:00:16 PDT"]
[Termination "ArnaudovP won on time"]

1. d4 {[%clk 0:10:01.9]} 1... Nf6 {[%clk 0:09:55.5]} 2. Nf3 {[%clk 0:10:03]}
2... d5 {[%clk 0:09:51.7]} 3. c4 {[%clk 0:10:03.1]} 3... dxc4 {[%clk 0:09:45.5]}
4. e3 {[%clk 0:10:03.3]} 4... e6 {[%clk 0:09:37.7]} 5. Bxc4 {[%clk 0:10:03.8]}
5... a6 {[%clk 0:09:39.3]} 6. O-O {[%clk 0:10:04.1]} 6... b5 {[%clk 0:09:38.8]}
7. Bd3 {[%clk 0:09:59]} 7... Bb7 {[%clk 0:09:37.9]} 8. a4 {[%clk 0:09:59.4]}
8... b4 {[%clk 0:09:37.3]} 9. Qe2 {[%clk 0:08:43.5]} 9... c5 {[%clk 0:09:35.6]}
10. e4 {[%clk 0:08:43.7]} 10... cxd4 {[%clk 0:09:20.7]} 11. Bg5 {[%clk
0:08:30.2]} 11... Be7 {[%clk 0:08:51.1]} 12. Nbd2 {[%clk 0:08:29.6]} 12... Nc6
{[%clk 0:08:49.2]} 13. Nc4 {[%clk 0:08:04.4]} 13... h6 {[%clk 0:08:39.4]} 14.
Bd2 {[%clk 0:07:51.5]} 14... Nd7 {[%clk 0:08:26.4]} 15. Rad1 {[%clk 0:07:20.5]}
15... Nc5 {[%clk 0:08:23.2]} 16. Bb1 {[%clk 0:07:20.9]} 16... Qc7 {[%clk
0:08:05.8]} 17. e5 {[%clk 0:07:16.8]} 17... Rd8 {[%clk 0:08:02.6]} 18. Bf4
{[%clk 0:07:11.4]} 18... d3 {[%clk 0:07:30]} 19. Qe3 {[%clk 0:07:09.8]} 19...
Rd5 {[%clk 0:07:22.2]} 20. h4 {[%clk 0:06:40.9]} 20... g5 {[%clk 0:06:42.9]} 21.
hxg5 {[%clk 0:06:38.3]} 21... hxg5 {[%clk 0:06:43.8]} 22. Bxg5 {[%clk
0:06:38.8]} 22... Bxg5 {[%clk 0:06:04]} 23. Qxg5 {[%clk 0:06:36.4]} 23... Qe7
{[%clk 0:05:42.2]} 24. Nd6+ {[%clk 0:06:17.3]} 24... Rxd6 {[%clk 0:05:14.8]} 25.
Qxe7+ {[%clk 0:05:05.9]} 25... Nxe7 {[%clk 0:04:43.7]} 26. exd6 {[%clk
0:05:06.3]} 26... Bxf3 {[%clk 0:04:43.7]} 27. gxf3 {[%clk 0:04:52.6]} 27... Rg8+
{[%clk 0:04:42]} 28. Kh2 {[%clk 0:04:52.6]} 28... Rh8+ {[%clk 0:04:43.2]} 29.
Kg2 {[%clk 0:03:37.2]} 29... Rg8+ {[%clk 0:04:31]} 30. Kh2 {[%clk 0:02:46.4]}
30... Rh8+ {[%clk 0:04:20.5]} 31. Kg3 {[%clk 0:02:25]} 31... Nf5+ {[%clk
0:03:56.9]} 32. Kf4 {[%clk 0:02:17.8]} 32... Rh4+ {[%clk 0:03:47]} 33. Kg5
{[%clk 0:02:18.8]} 33... Rd4 {[%clk 0:03:32.1]} 34. Rg1 {[%clk 0:01:23.9]} 34...
Nxd6 {[%clk 0:03:16.1]} 35. Rg4 {[%clk 0:01:02.9]} 35... Rd5+ {[%clk 0:03:15.1]}
36. Kh4 {[%clk 0:01:00]} 36... a5 {[%clk 0:03:15.3]} 37. Rg5 {[%clk 0:00:47.2]}
37... Nf5+ {[%clk 0:03:11.6]} 38. Kh3 {[%clk 0:00:46.8]} 38... Ke7 {[%clk
0:03:12]} 39. Ba2 {[%clk 0:00:34.1]} 39... b3 {[%clk 0:03:12.6]} 40. Bb1 {[%clk
0:00:34.6]} 40... Kf6 {[%clk 0:03:09.5]} 41. Rg4 {[%clk 0:00:33.9]} 41... Nd6
{[%clk 0:02:49.8]} 42. Rf4+ {[%clk 0:00:28.8]} 42... Ke7 {[%clk 0:02:46.6]} 43.
Rg4 {[%clk 0:00:26.1]} 43... e5 {[%clk 0:02:45.6]} 44. Kg2 {[%clk 0:00:23.6]}
44... Ke6 {[%clk 0:02:38.3]} 45. Rh4 {[%clk 0:00:24.5]} 45... f6 {[%clk
0:02:34]} 46. Rg4 {[%clk 0:00:24.1]} 46... Kf7 {[%clk 0:02:08.5]} 47. Kf1 {[%clk
0:00:23.6]} 47... f5 {[%clk 0:02:04.6]} 48. Rh4 {[%clk 0:00:24]} 48... Kg6
{[%clk 0:02:05]} 49. Kg2 {[%clk 0:00:22]} 49... f4 {[%clk 0:01:54.8]} 50. Rg4+
{[%clk 0:00:16.6]} 50... Kf6 {[%clk 0:01:55.3]} 51. Rh1 {[%clk 0:00:11.8]} 51...
Nf5 {[%clk 0:01:53.1]} 52. Rh8 {[%clk 0:00:10.2]} 52... Ne6 {[%clk 0:01:53]} 53.
Bxd3 {[%clk 0:00:08.3]} 53... Rxd3 {[%clk 0:01:53.8]} 54. Rhg8 {[%clk
0:00:08.2]} 54... Nfd4 {[%clk 0:01:49.5]} 55. R8g6+ {[%clk 0:00:05.7]} 55... Ke7
{[%clk 0:01:50.3]} 56. Rh6 {[%clk 0:00:06.5]} 56... Kd6 {[%clk 0:01:49.9]} 57.
Rg8 {[%clk 0:00:06.7]} 57... Rd2 {[%clk 0:01:48.6]} 58. Rd8+ {[%clk 0:00:07]}
58... Ke7 {[%clk 0:01:47.4]} 59. Rd5 {[%clk 0:00:07]} 59... Rxb2 {[%clk
0:01:34.4]} 60. Rxa5 {[%clk 0:00:08.1]} 60... Rc2 {[%clk 0:01:33.4]} 61. Ra7+
{[%clk 0:00:07.5]} 61... Rc7 {[%clk 0:01:30.5]} 62. Rxc7+ {[%clk 0:00:07.4]}
62... Nxc7 {[%clk 0:01:31.3]} 63. Rb6 {[%clk 0:00:09.3]} 63... Ncb5 {[%clk
0:01:25.5]} 64. Rb7+ {[%clk 0:00:06.9]} 64... Kd6 {[%clk 0:01:17]} 0-1